bitfinex/quotes_ETHUSD_20240709
["timestamp","ask_amount","ask_price","bid_price","bid_amount"]
[1720494394820,2.3671,3067.6,3067.0,3.26049]
[1720494395016,2.3671,3067.6,3066.7,3.26073]
[1720494395256,2.3671,3067.6,3066.9,3.2606]
[1720494395459,2.60381,3067.6,3066.9,3.2606]
[1720494395852,0.05773168,3067.5,3066.9,3.2606]
[1720494397266,0.05773168,3067.5,3067.0,3.26051]
[1720494397267,0.34115155,3067.4,3067.0,3.26051]
[1720494397656,0.05789102,3067.3,3067.2,3.2603]
[1720494397974,0.05789102,3067.3,3067.0,3.26044]
[1720494398363,0.34115155,3067.4,3067.0,3.26044]
[1720494398863,0.34115155,3067.4,3067.1,3.26039]
[1720494399967,0.34115155,3067.4,3067.2,3.26028]
[1720494400534,0.05775162,3067.3,3067.2,3.26028]
[1720494400742,0.34115155,3067.4,3067.3,3.26019]
[1720494400936,0.34115155,3067.4,3067.3,6.3242748]
[1720494401271,0.34115155,3067.4,3067.3,9.5844648]
[1720494401469,0.34115155,3067.4,3067.3,16.04076]
[1720494401782,2.3607,3068.8,3068.3,3.25905]
[1720494401936,2.3607,3068.8,3068.5,3.25892]
[1720494402140,0.07050263,3069.2,3068.5,3.25892]
[1720494402141,0.07050263,3069.2,3068.6,3.2588]
[1720494402351,0.07050263,3069.2,3068.7,3.25868]
[1720494402570,0.31362289,3069.2,3068.8,3.25859]
[1720494402779,0.07050263,3069.2,3068.8,3.25859]
[1720494402955,0.07050263,3069.2,3069.1,3.25828]
[1720494403283,0.07050263,3069.2,3069.1,9.51656]
[1720494403578,0.07050263,3069.2,3069.1,13.32484]
[1720494406876,2.21050263,3070.3,3069.5,3.25785]
[1720494407042,0.229,3070.2,3069.6,3.0]
[1720494407443,0.229,3070.2,3069.6,6.25773]
[1720494407994,2.21050263,3070.3,3069.7,0.06394965]
[1720494408294,2.21050263,3070.3,3070.2,3.25711]
[1720494408476,0.08142767,3071.6,3070.4,3.25685]
[1720494408642,2.277,3072.2,3070.6,3.25668]
[1720494408998,0.08141206,3072.6,3071.2,3.25595]
[1720494409143,2.277,3073.4,3071.7,3.25547]
[1720494409349,0.08137483,3073.3,3071.9,3.25522]
[1720494409582,0.3409178,3072.6,3071.8,3.25536]
[1720494409812,0.3409178,3072.6,3071.7,3.25547]
[1720494409813,0.08137483,3073.3,3071.6,3.25558]
[1720494409978,3.21660165,3073.2,3071.8,3.2554]
[1720494410292,3.21660165,3073.2,3071.3,3.0]
[1720494410293,2.3801,3073.1,3071.3,6.25586]
[1720494410598,1.69480229,3072.8,3071.6,3.2556]
[1720494410745,1.69480229,3072.8,3070.7,7.44]
[1720494410746,2.4685,3072.6,3071.0,3.25617]
[1720494410945,0.08139116,3072.5,3071.2,3.25595]
[1720494411146,0.25498912,3072.4,3071.3,3.25589]
[1720494412525,0.05255677,3072.3,3071.3,3.25589]
[1720494412691,0.252918,3071.4,3071.3,3.25589]
[1720494413568,0.252918,3071.4,3071.1,3.25611]
[1720494413774,0.252918,3071.4,3071.2,3.25602]
[1720494414581,0.252918,3071.4,3071.3,3.25595]
[1720494415500,0.252918,3071.4,3071.3,7.0619]
[1720494416625,0.252918,3071.4,3071.3,10.0619]
[1720494419039,0.32979791,3073.0,3071.3,10.0619]
[1720494419181,0.83650165,3073.2,3071.5,2.3598]
[1720494419383,0.34086496,3073.2,3072.8,3.25435]
[1720494419635,2.3317,3074.0,3072.9,3.25423]
[1720494420127,0.04222592,3073.9,3073.0,3.25414]
[1720494420292,2.3317,3074.0,3073.0,3.25414]
[1720494420618,0.23317,3073.9,3073.1,3.25404]
[1720494420823,0.23317,3073.9,3072.7,3.0]
[1720494421027,0.04218221,3073.8,3072.7,3.25438]
[1720494421226,0.31102176,3073.8,3072.8,6.25435]
[1720494421943,0.31102176,3073.8,3073.0,3.25405]
[1720494422112,0.31102176,3073.8,3073.1,3.317743]
[1720494422423,0.31102176,3073.8,3072.9,0.06372145]
[1720494422724,0.31102176,3073.8,3073.1,3.25403]
[1720494423326,0.31102176,3073.8,3073.2,3.25392]
[1720494423542,0.04218221,3073.8,3073.4,3.25364]
[1720494423834,0.04216158,3073.8,3073.5,3.25359]
[1720494424135,1e-08,3073.8,3073.6,0.06368723]
[1720494424281,0.04075557,3073.8,3073.6,3.31711723]
[1720494424488,2.4479,3074.5,3073.6,3.31711723]
[1720494424784,2.4479,3074.5,3074.3,3.25272]
[1720494425000,0.03965614,3074.4,3074.3,3.25272]
[1720494425318,5.00856394,3075.0,3074.0,3.25307]
[1720494425319,4.6679,3075.0,3074.0,3.25307]
[1720494425526,0.54809948,3074.9,3073.6,3.25343]
[1720494425686,0.54809948,3074.9,3073.7,3.8034]
[1720494426021,0.03917548,3074.8,3073.7,0.55]
[1720494426324,0.03917548,3074.8,3073.6,6.80341]
[1720494426830,0.46679,3074.9,3073.7,3.25336]
[1720494427128,0.03917971,3074.7,3073.6,6.80341]
[1720494427289,0.03922339,3074.8,3073.6,6.80341]
[1720494427491,0.54811114,3074.9,3073.7,3.2534]
[1720494427805,0.56091835,3074.8,3073.7,3.2534]
[1720494428006,2.2703,3074.6,3071.9,2.7565]
[1720494428207,2.2703,3074.2,3072.2,3.25498]
[1720494428399,2.2703,3074.0,3072.3,3.25479]
[1720494428594,2.35165671,3073.9,3072.4,3.25477]
[1720494428796,2.68169865,3073.9,3072.4,3.25477]
[1720494428993,2.60034194,3073.9,3072.4,3.25477]
[1720494429221,2.60034194,3073.9,3072.3,0.06375042]
[1720494429438,2.68169061,3073.9,3072.3,3.25479]
[1720494429724,2.355,3073.6,3071.5,0.06375234]
[1720494429925,2.355,3073.6,3072.2,3.25498]
[1720494430136,0.0375986,3073.5,3072.4,3.25469]
[1720494430420,2.355,3073.6,3072.5,3.31842037]
[1720494430723,0.31684475,3073.5,3072.1,3.25508]
[1720494430899,0.31684475,3073.5,3072.2,3.25492]
[1720494431129,0.2355,3073.5,3072.3,6.80485]
[1720494431316,2.355,3073.6,3072.5,3.2546]
[1720494431317,0.26718447,3073.4,3072.5,3.2546]
[1720494431605,0.26718447,3073.4,3072.3,6.80485]
[1720494431807,0.26718447,3073.4,3072.3,3.55]
[1720494432008,0.26718447,3073.4,3072.3,0.55]
[1720494432217,0.26718447,3073.4,3072.3,0.6137567]
[1720494432620,0.26718447,3073.4,3072.3,3.80485]
[1720494432923,0.26718447,3073.4,3071.9,3.06372952]
[1720494432924,2.3754,3073.3,3072.1,3.25504]
[1720494433220,0.03710793,3073.2,3072.2,3.55]
[1720494433424,2.3754,3073.3,3072.3,3.25488]
[1720494433587,0.0369938,3073.1,3072.3,3.25488]
[1720494433790,0.23754,3073.2,3072.3,3.25488]
[1720494433987,0.23754,3073.2,3072.2,3.55]
[1720494433988,0.23754,3073.2,3072.5,3.25457]
[1720494434243,0.23754,3073.2,3072.6,3.25454]
[1720494434394,0.23754,3073.2,3072.7,3.25446]
[1720494434594,2.3754,3073.3,3072.3,3.25479]
[1720494434807,0.03556708,3073.1,3072.5,3.25463]
[1720494435102,2.3754,3073.3,3072.5,3.25463]
[1720494435286,2.3754,3073.3,3072.3,3.25479]
[1720494435495,2.3754,3073.3,3072.1,3.25506]
[1720494435496,0.27314088,3073.2,3072.4,0.55]
[1720494435810,2.361,3073.1,3070.6,3.2566]
[1720494435988,0.08136998,3073.0,3071.4,3.25579]
[1720494436187,0.08136998,3073.0,3071.5,3.25573]
[1720494436390,2.361,3072.9,3071.3,3.25589]
[1720494436589,2.361,3072.9,3071.4,3.25582]
[1720494436590,0.3256139,3072.8,3071.4,3.25582]
[1720494436785,0.0813769,3072.7,3071.4,3.25582]
[1720494437030,0.11687545,3072.7,3071.4,3.25582]
[1720494437421,0.11687545,3072.7,3070.8,0.06380526]
[1720494437600,2.361,3072.6,3071.3,3.25594]
[1720494437800,0.24778755,3072.5,3071.3,3.25594]
[1720494438295,0.03536733,3072.4,3071.3,3.25594]
[1720494438503,0.03536733,3072.4,3070.7,3.25658]
[1720494438504,2.44238168,3072.3,3070.7,3.25658]
[1720494438835,0.03542071,3072.2,3070.8,3.25645]
[1720494439012,0.27965888,3072.2,3070.9,3.25635]
[1720494439200,0.27965888,3072.2,3071.1,3.25606]
[1720494439538,0.26406589,3072.1,3071.1,3.25606]
[1720494439898,0.26406589,3072.1,3070.7,3.25656]
[1720494439899,0.08138382,3072.0,3070.7,3.25656]
[1720494440100,0.08138382,3072.0,3070.8,0.55]
[1720494440301,0.26406589,3072.1,3070.9,3.25636]
[1720494440497,0.26406589,3072.1,3071.0,0.55]
[1720494441435,2.3212,3072.0,3071.0,0.55]
[1720494441600,2.43755521,3072.0,3070.6,3.25665]
[1720494441798,2.35616476,3072.0,3070.6,3.25665]
[1720494442038,2.35616476,3072.0,3070.5,3.25676]
[1720494442244,0.23561648,3071.9,3070.5,3.25676]
[1720494442484,0.27048081,3071.9,3070.6,3.25669]
[1720494442648,0.27048081,3071.9,3070.7,3.25657]
[1720494442845,0.27048081,3071.9,3070.8,3.32032187]
[1720494443098,0.27048081,3071.9,3071.0,3.25625]
[1720494443252,0.27048081,3071.9,3071.1,0.55]
[1720494443584,0.27048081,3071.9,3071.1,3.80615]
[1720494443880,0.27048081,3071.9,3071.2,0.06382575]
[1720494444441,0.27048081,3071.9,3071.2,3.31986566]
[1720494444640,0.03486433,3071.9,3071.3,0.55]
[1720494444841,1e-08,3071.9,3071.4,0.063822]
[1720494445072,0.03349777,3071.9,3071.4,0.063822]
[1720494445342,0.03349777,3071.9,3071.5,3.25571]
[1720494445542,0.03349777,3071.9,3071.6,0.55]
[1720494445849,2.3212,3072.0,3071.2,3.25605]
[1720494446168,2.3212,3072.0,3070.8,3.25647]
[1720494446169,2.55332,3072.0,3070.8,3.25647]
[1720494446479,2.55332,3072.0,3070.6,3.25668]
[1720494446480,0.03365897,3071.9,3070.6,3.25668]
[1720494446662,0.03365897,3071.9,3070.5,3.0]
[1720494446863,0.23212,3072.0,3070.2,3.25709]
[1720494447088,0.03389705,3071.8,3070.2,3.25709]
[1720494447267,2.3193,3071.7,3070.0,3.25731]
[1720494447451,2.3193,3071.5,3070.2,3.25711]
[1720494447998,0.03314942,3071.4,3070.0,6.51456]
[1720494448159,2.51291794,3071.3,3069.6,3.25774]
[1720494448495,2.35352206,3071.2,3069.7,3.25763]
[1720494448696,0.08141911,3071.1,3069.7,3.25763]
[1720494448986,0.08141911,3071.1,3069.4,3.25786]
[1720494449158,0.08141911,3071.1,3069.4,3.25793]
[1720494449159,2.3116875,3071.0,3069.4,3.25793]
[1720494449354,0.03288095,3070.9,3069.5,3.243386]
[1720494449742,2.2788,3071.0,3069.5,3.243386]
[1720494449743,0.03283717,3070.8,3069.5,3.243386]
[1720494449942,0.26400089,3070.8,3069.7,3.25762]
[1720494450171,0.26400089,3070.8,3069.5,3.243386]
[1720494450172,0.26400089,3070.8,3069.8,3.0]
[1720494450379,2.499,3070.7,3069.5,0.243386]
[1720494450593,0.08143393,3070.6,3069.5,0.243386]
[1720494450758,2.499,3070.7,3069.5,0.243386]
[1720494450759,2.53194416,3070.7,3069.5,0.243386]
[1720494450942,0.03270053,3070.6,3069.5,0.243386]
[1720494451144,0.25317005,3070.5,3069.5,3.501236]
[1720494451591,0.25317005,3070.5,3069.6,3.25772]
[1720494451592,0.03255617,3070.4,3069.6,3.25772]
[1720494451957,0.25317005,3070.5,3069.6,3.25772]
[1720494453156,0.25317005,3070.5,3069.5,3.501236]
[1720494453361,2.3971,3070.4,3069.5,0.243386]
[1720494453597,0.265027,3070.3,3069.5,0.243386]
[1720494453793,0.265027,3070.3,3070.0,3.25732]
[1720494453794,0.0326182,3070.3,3070.0,3.25732]
[1720494454089,2.4879,3071.0,3070.1,0.06390968]
[1720494454300,0.24879,3070.9,3070.1,0.06390968]
[1720494454477,0.24879,3070.9,3070.1,3.32112968]
[1720494454650,2.4879,3071.0,3070.1,0.06390968]
[1720494455017,2.4879,3071.0,3070.7,3.25657]
[1720494455147,2.4879,3071.8,3070.8,3.8064]
[1720494455349,0.50858921,3071.7,3071.2,3.25602]
[1720494455543,2.4879,3071.8,3071.2,3.25602]
[1720494455793,2.4879,3071.8,3071.0,3.25625]
[1720494455959,2.4879,3071.8,3070.9,0.06383069]
[1720494455960,2.4879,3071.8,3070.9,3.25633]
[1720494456304,2.4879,3071.8,3071.0,3.0]
[1720494456489,2.73669,3071.8,3071.0,3.0]
[1720494456699,0.08139337,3071.7,3070.3,3.25692]
[1720494456855,0.08139337,3071.7,3070.6,3.25668]
[1720494456856,0.03316845,3071.7,3070.6,3.25668]
[1720494457057,0.27698584,3071.6,3070.6,3.25668]
[1720494457387,0.27698584,3071.6,3070.4,3.55]
[1720494457388,2.3402,3071.4,3070.4,3.55]
[1720494457643,0.08140638,3071.3,3070.4,0.55]
[1720494457820,2.3402,3071.4,3070.4,0.55]
[1720494458419,3.0,3072.3,3069.8,7.44]
[1720494458420,0.08140636,3071.3,3069.8,7.44]
[1720494458623,2.4744,3071.7,3070.2,3.25709]
[1720494458833,2.55581667,3071.7,3070.2,3.25709]
[1720494459125,2.55581667,3071.7,3070.0,3.25726]
[1720494459126,2.4527,3071.5,3070.0,3.25726]
[1720494459296,2.4527,3071.3,3070.0,3.25726]
[1720494459630,0.11428452,3071.2,3070.1,3.25721]
[1720494460123,0.03286779,3071.2,3070.2,3.25707]
[1720494460336,0.03286779,3071.2,3070.3,0.06390058]
[1720494460517,0.24855678,3071.2,3070.5,3.25679]
[1720494461402,0.32996416,3071.2,3070.0,3.2573]
[1720494462547,0.32996416,3071.2,3070.1,3.25721]
[1720494462858,0.27826642,3071.1,3070.1,3.25721]
[1720494463410,0.27826642,3071.1,3070.3,3.257]
[1720494463823,0.27826642,3071.1,3070.4,3.25687]
[1720494464243,0.27826642,3071.1,3070.5,3.25677]
[1720494464428,0.27826642,3071.1,3070.4,3.25684]
[1720494464622,0.27826642,3071.1,3070.5,3.25678]
[1720494464955,0.27826642,3071.1,3070.6,3.25666]
[1720494465189,2.4527,3071.3,3070.6,3.25666]
[1720494465454,0.03286925,3071.2,3070.6,3.25666]
[1720494465644,2.4527,3071.3,3070.6,3.25666]
[1720494466351,2.4527,3071.3,3070.4,3.25683]
[1720494467048,0.11428253,3071.2,3070.2,3.25708]
[1720494467229,0.32668328,3071.2,3070.0,3.25726]
[1720494467559,0.32668328,3071.2,3070.1,3.25721]
[1720494467560,2.4823,3071.1,3070.1,3.25721]
[1720494470625,2.4823,3071.1,3069.8,3.25751]
[1720494470626,2.2604,3070.9,3069.8,3.25751]
[1720494470948,0.08142487,3070.8,3069.9,3.0]
[1720494471512,0.03178252,3070.7,3069.9,3.0]
[1720494472465,2.2604,3070.6,3069.4,3.25792]
[1720494472810,0.31879297,3070.5,3069.5,3.25777]
[1720494472957,0.31879297,3070.5,3068.8,7.44]
[1720494472958,0.35033119,3070.5,3069.2,3.2581]
[1720494473158,2.2604,3070.4,3069.3,3.25801]
[1720494473359,0.34251066,3070.3,3069.3,3.25801]
[1720494473567,0.08143751,3070.2,3069.3,3.25801]
[1720494473870,0.26107312,3070.3,3069.4,3.25794]
[1720494474077,0.03157458,3070.1,3069.4,3.25794]
[1720494474263,0.26107312,3070.3,3069.4,3.25794]
[1720494474604,0.25214731,3070.2,3069.4,3.25794]
[1720494474895,0.36445979,3070.2,3069.2,3.2581]
[1720494475104,0.36445979,3070.2,3069.3,0.55]
[1720494475771,0.36445979,3070.2,3069.3,3.808]
[1720494475971,0.33358477,3070.2,3069.3,3.808]
[1720494477093,2.3121,3070.1,3069.1,3.25821]
[1720494477402,0.11247222,3070.0,3068.9,3.25841]
[1720494477705,0.08144272,3070.0,3068.7,3.2587]
[1720494477906,0.23935427,3069.9,3068.8,3.25859]
[1720494478205,0.08144969,3069.8,3068.8,3.25859]
[1720494478899,0.08144969,3069.8,3068.9,3.25848]
[1720494479104,2.3121,3069.7,3068.6,3.25879]
[1720494479260,2.3121,3069.7,3068.5,3.0]
[1720494479261,0.32080784,3069.6,3068.5,6.25891]
[1720494479465,0.3516621,3069.6,3068.5,6.25891]
[1720494479879,0.3516621,3069.6,3068.6,3.2588]
[1720494480076,0.32080784,3069.6,3068.5,3.0]
[1720494480389,0.26637621,3069.5,3068.5,6.2589]
[1720494480763,0.26637621,3069.5,3068.7,3.25866]
[1720494481370,2.3121,3069.7,3069.0,3.25831]
[1720494481710,2.3121,3069.7,3068.7,3.25867]
[1720494481711,0.0303248,3069.6,3068.9,3.25847]
[1720494482771,0.0303248,3069.6,3069.1,3.25828]
[1720494483976,0.0303248,3069.6,3068.9,3.25847]
[1720494484221,0.23424248,3069.5,3068.9,3.25839]
[1720494484374,0.2644861,3069.5,3069.0,3.25836]
[1720494484577,0.03024362,3069.5,3069.1,3.25824]
[1720494484803,2.3121,3069.7,3069.1,3.25824]
[1720494485190,2.3121,3069.7,3068.9,3.25839]
[1720494485392,0.03038153,3069.6,3069.0,3.25838]
[1720494485592,0.23424815,3069.5,3069.0,3.25838]
[1720494485906,0.03029388,3069.4,3069.0,3.25838]
[1720494486277,0.08145173,3069.4,3068.8,3.25857]
[1720494487218,0.08145173,3069.4,3067.7,2.36995874]
[1720494487219,2.4916,3069.3,3068.2,3.2592]
[1720494487540,0.25730517,3069.2,3068.2,3.2592]
[1720494487676,0.25730517,3069.2,3068.4,3.25902]
[1720494487902,0.03027297,3069.1,3068.2,3.25917]
[1720494488104,0.31633777,3069.1,3068.3,3.25913]
[1720494488299,0.08146984,3069.0,3068.0,6.5188]
[1720494488535,0.08146984,3069.0,3068.0,3.25937]
[1720494488752,0.2860648,3069.1,3068.2,3.25915]
[1720494490652,2.403,3069.1,3068.0,3.25936]
[1720494490950,0.02980045,3069.0,3068.2,3.2592]
[1720494491449,0.02980045,3069.0,3068.3,3.25911]
[1720494491692,2.403,3069.1,3068.3,3.25911]
[1720494491835,0.2403,3069.0,3068.3,3.25911]
[1720494492576,0.2403,3069.0,3068.4,3.259]
[1720494492799,2.403,3069.1,3068.4,3.259]
[1720494492800,2.403,3069.1,3068.5,3.25888]
[1720494492927,2.403,3069.1,3068.6,3.25874]
[1720494493771,2.403,3069.1,3068.9,3.25846]
[1720494493929,2.403,3069.1,3068.7,6.51731]
[1720494494126,2.403,3069.1,3068.8,3.25857]
[1720494494367,2.403,3069.1,3068.9,3.25846]
[1720494496653,2.3932,3070.1,3068.9,3.25846]
[1720494496901,2.3932,3070.1,3069.4,3.25788]
[1720494497968,2.3932,3070.1,3069.5,3.25785]
[1720494498301,2.3932,3070.1,3069.4,3.25788]
[1720494498598,2.3932,3070.1,3069.5,3.25785]
[1720494498786,2.63252,3070.1,3069.5,3.25785]
[1720494499184,2.63252,3070.1,3069.7,3.25764]
[1720494499356,2.3932,3070.1,3069.8,3.25752]
[1720494500388,2.61312105,3071.3,3070.1,3.25721]
[1720494500590,2.65491211,3071.2,3070.2,3.25703]
[1720494500794,3.78325436,3071.2,3070.2,3.25703]
[1720494500992,1.12834225,3071.1,3070.2,3.25703]
[1720494501202,1.12834225,3071.0,3070.0,3.2573]
[1720494501380,1.12838027,3070.9,3070.1,3.25721]
[1720494501722,0.26549121,3071.1,3070.2,3.25711]
[1720494502021,1.12835085,3071.0,3070.2,3.25711]
[1720494502222,2.3936,3071.2,3070.6,3.25663]
[1720494502375,2.63296,3071.2,3069.5,6.25785]
[1720494502583,2.3936,3071.2,3070.6,3.25659]
[1720494503093,2.3936,3071.2,3070.4,3.25689]
[1720494503330,2.3936,3071.2,3070.5,3.25671]
[1720494503697,2.3936,3071.2,3070.2,3.25707]
[1720494504212,2.3936,3071.2,3070.5,3.25679]
[1720494504724,2.3936,3071.2,3070.6,3.25667]
[1720494504927,2.3936,3071.2,3070.9,3.25636]
[1720494507998,2.3936,3071.2,3069.9,3.25737]
[1720494507999,2.63296,3071.2,3070.6,3.25664]
[1720494509102,2.63296,3071.2,3070.4,3.25689]
[1720494509297,2.63296,3071.2,3070.5,3.25679]
[1720494509527,0.0814149,3071.1,3070.4,3.25689]
[1720494509727,0.35285239,3071.1,3070.4,3.25689]
[1720494510028,0.27143749,3071.1,3070.4,3.25689]
[1720494510195,2.3936,3071.2,3070.4,3.25689]
[1720494515090,2.3936,3071.2,3070.5,3.25676]
[1720494515495,2.3936,3071.2,3070.8,3.25644]
[1720494516493,2.4855,3072.1,3071.0,3.25619]
[1720494516696,0.75294903,3072.0,3071.0,3.25619]
[1720494516893,5.4855,3072.1,3071.0,3.25619]
[1720494517093,3.0,3072.0,3071.0,3.25619]
[1720494517340,2.4855,3072.1,3071.0,3.25619]
[1720494519531,3.0,3072.3,3070.7,3.25658]
[1720494519532,0.08140109,3072.0,3070.7,3.25658]
[1720494519737,1.703,3071.8,3069.8,9.8559]
[1720494520033,2.5706136,3071.7,3070.5,3.25671]
[1720494520235,2.6595,3071.7,3070.7,3.25657]
[1720494522017,2.6595,3071.7,3070.8,3.25646]
[1720494522617,2.6595,3071.7,3070.7,3.25651]
[1720494522817,0.43625,3071.6,3070.8,3.25646]
[1720494523963,2.6595,3071.7,3070.9,3.3201538]
[1720494524132,2.4892,3071.7,3070.9,3.3201538]
[1720494525543,2.4892,3071.7,3070.9,6.5764238]
[1720494525743,2.4892,3071.7,3071.0,3.25626]
[1720494527152,2.4892,3071.7,3070.7,3.25654]
[1720494527871,1.12807784,3071.6,3070.7,3.25654]
[1720494528171,2.73812,3071.7,3070.5,3.25678]
[1720494528483,2.73812,3071.7,3069.9,6.25743]
[1720494528484,0.08140068,3071.5,3070.3,3.25699]
[1720494528634,2.4308,3071.4,3070.4,3.0]
[1720494528964,1.37931809,3071.3,3070.4,3.0]
[1720494529193,1.12809802,3071.2,3070.4,3.0]
[1720494529369,0.25122007,3071.3,3070.5,3.25678]
[1720494529588,1.12818654,3071.2,3070.5,3.25678]
[1720494529875,0.25122007,3071.3,3070.5,3.25678]
[1720494530078,1.12821099,3071.2,3070.5,3.25678]
[1720494530235,0.25122007,3071.3,3070.5,3.25678]
[1720494530446,1.12818911,3071.2,3070.5,3.25678]
[1720494530646,1.12818911,3071.1,3070.5,3.25678]
[1720494530846,0.33263184,3071.3,3070.3,3.25691]
[1720494531093,1.40454676,3071.2,3070.3,3.25691]
[1720494531279,1.12820358,3071.1,3070.3,3.25691]
[1720494531457,1.12820358,3071.1,3070.4,3.2568]
[1720494531643,1.12820358,3071.3,3070.4,3.2568]
[1720494531850,1.12820358,3071.2,3070.3,3.25691]
[1720494532187,1.12820358,3071.2,3070.4,3.25687]
[1720494532953,1.12824379,3071.1,3070.4,3.25687]
[1720494533152,1.12824379,3071.0,3070.3,3.25691]
[1720494533406,0.24308,3071.3,3070.3,3.25691]
[1720494533407,1.12823393,3070.9,3070.4,3.25687]
[1720494533690,0.24308,3071.3,3070.4,3.25687]
[1720494533892,1.39563968,3071.2,3070.4,3.25687]
[1720494534106,1.12825168,3071.2,3070.4,3.25687]
[1720494534276,1.12823738,3071.1,3070.4,3.25687]
[1720494534474,1.12823738,3071.0,3070.4,3.25687]
[1720494534804,1.12823738,3070.9,3070.4,3.25687]
[1720494534973,1.12823738,3071.3,3070.4,3.25687]
[1720494535173,1.48414112,3071.3,3070.4,3.25687]
[1720494535479,1.12823738,3071.2,3070.5,3.25679]
[1720494535693,1.12823738,3071.1,3070.5,3.25679]
[1720494535998,1.12823738,3071.0,3070.5,3.25679]
[1720494536200,0.35590374,3071.3,3070.5,3.25679]
[1720494536562,1.12825383,3071.2,3070.5,3.25679]
[1720494536886,1.12825383,3071.1,3070.5,3.25679]
[1720494537094,1.12825383,3071.0,3070.5,3.25679]
[1720494537290,1.12825383,3070.9,3070.5,3.25679]
[1720494537471,1.12825383,3071.2,3070.5,3.25679]
[1720494537679,1.12825383,3071.1,3070.5,3.25679]
[1720494537984,1.12825383,3071.0,3070.3,3.25691]
[1720494538195,1.12825383,3071.1,3070.3,3.2569]
[1720494539005,1.12825383,3071.1,3070.4,3.25687]
[1720494539412,1.12825383,3071.1,3070.1,3.25718]
[1720494539413,1.20966552,3071.1,3070.1,3.25718]
[1720494539575,3.47001079,3071.0,3069.9,3.25739]
[1720494539777,3.47001079,3071.0,3070.0,3.25731]
[1720494539778,1.5648738,3070.9,3070.0,3.25731]
[1720494540003,1.12831079,3070.8,3070.0,3.25731]
[1720494540210,1.12831079,3070.8,3069.9,3.25739]
[1720494540426,1.12831079,3070.8,3070.0,3.2573]
[1720494541188,1.12831079,3070.8,3070.1,3.25722]
[1720494541489,2.3417,3071.0,3070.3,3.257]
[1720494541810,1.12828873,3070.9,3070.3,3.257]
[1720494542006,1.12828946,3070.8,3070.3,3.257]
[1720494542216,2.3417,3071.0,3070.3,3.257]
[1720494542519,1.12829503,3070.9,3070.3,3.257]
[1720494542681,2.3417,3071.0,3070.3,3.257]
[1720494542878,1.12829049,3070.9,3070.3,3.257]
[1720494543220,4.08744693,3071.5,3070.7,3.25658]
[1720494543431,1.12819388,3071.4,3070.7,3.25658]
[1720494543608,1.12819388,3071.3,3070.7,3.25658]
[1720494543808,1.12819388,3071.2,3070.7,3.25658]
[1720494544010,2.3801,3071.5,3070.7,3.25658]
[1720494544255,1.12815991,3071.4,3070.7,3.25658]
[1720494544414,1.12815991,3071.3,3070.5,3.25671]
[1720494544726,1.12815991,3071.2,3070.6,3.25661]
[1720494544883,1.12815991,3071.1,3070.6,3.25661]
[1720494545087,1.12815991,3071.4,3070.6,3.25661]
[1720494545287,1.12820218,3071.3,3070.6,3.25661]
[1720494545493,1.12820218,3071.2,3070.6,3.25661]
[1720494545709,1.12820218,3071.3,3070.6,3.25661]
[1720494545921,1.12020218,3071.3,3070.6,3.25661]
[1720494546225,4.56330778,3071.5,3070.6,3.25661]
[1720494546589,4.56330778,3071.5,3070.7,3.25657]
[1720494546785,2.85455776,3071.5,3070.7,3.25657]
[1720494547025,2.3801,3071.5,3070.8,3.32032091]
[1720494547334,2.3801,3071.5,3071.0,3.25624]
[1720494547504,4.08885002,3072.0,3071.3,3.25593]
[1720494547697,1.70875002,3072.2,3071.4,3.31965549]
[1720494548237,0.66932421,3072.4,3071.4,3.31965549]
[1720494548238,1.70875002,3072.3,3071.4,3.31965549]
[1720494548542,1.70942166,3072.3,3071.7,3.2555]
[1720494548837,1.70942166,3072.4,3071.7,3.2555]
[1720494549003,2.41236147,3072.4,3071.7,3.2555]
[1720494549528,2.41236147,3072.4,3071.5,6.51134]
[1720494549703,2.41236147,3072.4,3071.1,0.55]
[1720494549704,1.79079936,3072.3,3071.4,3.25581]
[1720494549901,0.24937392,3072.2,3071.4,3.25581]
[1720494550592,0.24937392,3072.2,3071.5,3.25573]
[1720494551029,1.95879558,3072.2,3071.5,3.25573]
[1720494551232,1.70942166,3072.2,3071.5,3.25573]
[1720494551397,1.70942166,3072.3,3071.5,3.25573]
[1720494551592,0.70293981,3072.4,3071.5,3.25573]
[1720494551804,1.78934794,3072.3,3071.1,3.80612]
[1720494552002,1.78934794,3072.3,3070.7,2.3583]
[1720494552003,1.70796412,3072.1,3070.8,3.2564]
[1720494552219,4.7597459,3072.0,3070.4,3.25687]
[1720494552420,1.70811641,3071.6,3070.6,3.25659]
[1720494552915,1.70833864,3071.6,3070.6,3.25659]
[1720494553253,1.703,3071.8,3071.1,3.25612]
[1720494553254,1.70833864,3071.8,3071.1,3.25612]
[1720494553544,2.3648,3072.0,3071.2,0.06383828]
[1720494553713,2.80628064,3072.0,3071.2,0.06383529]
[1720494553918,2.80628064,3072.0,3071.3,3.25585]
[1720494554326,4.51461928,3072.0,3071.3,3.25585]
[1720494554649,2.3648,3072.0,3071.3,3.25585]
[1720494557215,2.3648,3072.0,3071.4,3.25583]
[1720494558621,2.3648,3072.0,3071.2,3.25599]
[1720494558848,2.3648,3072.0,3071.3,3.25587]
[1720494559149,2.77206265,3072.0,3071.3,3.25587]
[1720494559649,2.3648,3072.0,3071.4,3.25583]
[1720494561459,2.3648,3072.0,3071.4,6.51158]
[1720494561759,4.6905872,3072.4,3071.5,3.25567]
[1720494561965,4.69038508,3072.4,3071.5,3.25567]
[1720494562256,1.12784079,3072.3,3071.5,3.25567]
[1720494562547,0.58182259,3072.3,3071.5,3.25567]
[1720494564527,0.58182259,3072.3,3071.6,3.25561]
[1720494564752,0.58182259,3072.3,3071.7,3.2555]
[1720494565464,0.58182259,3072.3,3071.6,3.25561]
[1720494565759,1.12783992,3072.2,3071.4,3.25576]
[1720494565962,1.12790296,3072.1,3071.4,3.25576]